[Event "*** Titled Tuesday Blitz"]
[Site "Chess.com"]
[Date "2019.05.07"]
[Round "8"]
[White "WPWPWP-2015"]
[Black "MathiasWomacka"]
[Result "0-1"]
[WhiteElo "2364"]
[BlackElo "2235"]
[TimeControl "180+2"]
[EndTime "14:54:00 PDT"]
[Termination "MathiasWomacka won by resignation"]

1. e4 {[%clk 0:03:01.9]} 1... c5 {[%clk 0:03:00.5]} 2. Nf3 {[%clk 0:03:02.5]}
2... d6 {[%clk 0:03:00.8]} 3. d4 {[%clk 0:03:03.5]} 3... cxd4 {[%clk 0:03:02]}
4. Nxd4 {[%clk 0:03:04.7]} 4... Nf6 {[%clk 0:03:03.6]} 5. Nc3 {[%clk 0:03:05.7]}
5... a6 {[%clk 0:03:05.1]} 6. h3 {[%clk 0:03:06.8]} 6... e6 {[%clk 0:03:03.2]}
7. g4 {[%clk 0:03:05.9]} 7... b5 {[%clk 0:03:03]} 8. Bg2 {[%clk 0:03:05.8]} 8...
Bb7 {[%clk 0:03:03.8]} 9. O-O {[%clk 0:02:48]} 9... Nfd7 {[%clk 0:03:03.8]} 10.
Re1 {[%clk 0:02:46]} 10... Nc6 {[%clk 0:03:03.7]} 11. a4 {[%clk 0:02:44.5]}
11... b4 {[%clk 0:02:59.9]} 12. Nxc6 {[%clk 0:02:43.1]} 12... Bxc6 {[%clk
0:03:00.1]} 13. Nd5 {[%clk 0:02:44.2]} 13... a5 {[%clk 0:02:57.5]} 14. c3 {[%clk
0:02:40.6]} 14... bxc3 {[%clk 0:02:57.1]} 15. Nxc3 {[%clk 0:02:41.6]} 15... Be7
{[%clk 0:02:57.5]} 16. Nb5 {[%clk 0:02:29.9]} 16... Ne5 {[%clk 0:02:35.6]} 17.
f4 {[%clk 0:02:24.4]} 17... Ng6 {[%clk 0:02:35.6]} 18. Be3 {[%clk 0:02:14.5]}
18... O-O {[%clk 0:02:32]} 19. Rc1 {[%clk 0:02:13.5]} 19... Qd7 {[%clk
0:02:26.8]} 20. Qd3 {[%clk 0:01:10.3]} 20... Rab8 {[%clk 0:02:24.3]} 21. Nd4
{[%clk 0:00:26.7]} 21... Bxa4 {[%clk 0:02:23.3]} 22. Qa3 {[%clk 0:00:17.4]}
22... d5 {[%clk 0:02:12.7]} 23. Qa2 {[%clk 0:00:18.4]} 23... dxe4 {[%clk
0:02:09.7]} 24. Bxe4 {[%clk 0:00:18.7]} 24... Nxf4 {[%clk 0:01:58.7]} 25. Nf3
{[%clk 0:00:15.5]} 25... Nd5 {[%clk 0:01:52.7]} 26. Bf2 {[%clk 0:00:14.5]} 26...
Bb4 {[%clk 0:01:39.2]} 27. Re2 {[%clk 0:00:13]} 27... Bb5 {[%clk 0:01:39.1]} 28.
Rec2 {[%clk 0:00:13.7]} 28... Qd6 {[%clk 0:01:25.3]} 29. Qb1 {[%clk 0:00:11.7]}
29... Qf4 {[%clk 0:01:20.6]} 30. Bxd5 {[%clk 0:00:07.4]} 30... exd5 {[%clk
0:01:21.1]} 31. Nd4 {[%clk 0:00:08]} 31... Bd3 {[%clk 0:01:19.2]} 32. Qa2 {[%clk
0:00:07.6]} 32... Bxc2 {[%clk 0:01:19.5]} 33. Rxc2 {[%clk 0:00:08.9]} 33... Qe4
{[%clk 0:01:16.6]} 34. Re2 {[%clk 0:00:07.8]} 34... Qd3 {[%clk 0:01:16.5]} 35.
Qxd5 {[%clk 0:00:07.6]} 35... Qxh3 {[%clk 0:01:16.4]} 36. Qg5 {[%clk 0:00:04.7]}
36... h6 {[%clk 0:01:15.4]} 37. Qf4 {[%clk 0:00:03]} 37... Rfe8 {[%clk
0:01:12.8]} 38. Re3 {[%clk 0:00:02.6]} 38... Rxe3 {[%clk 0:01:03.1]} 39. Bxe3
{[%clk 0:00:03.8]} 39... Re8 {[%clk 0:01:01.9]} 40. Kf2 {[%clk 0:00:04.3]} 40...
Bc5 {[%clk 0:00:59.1]} 41. Nf5 {[%clk 0:00:04.7]} 41... Bxe3+ {[%clk 0:00:59.3]}
42. Nxe3 {[%clk 0:00:05.9]} 42... Qxe3+ {[%clk 0:00:58.9]} 43. Qxe3 {[%clk
0:00:06.7]} 43... Rxe3 {[%clk 0:01:00.4]} 44. Kxe3 {[%clk 0:00:08.3]} 44... f6
{[%clk 0:01:01.2]} 45. Kd4 {[%clk 0:00:09.3]} 45... Kf7 {[%clk 0:01:02.5]} 46.
Kc5 {[%clk 0:00:10.6]} 46... g6 {[%clk 0:01:03.9]} 47. Kb5 {[%clk 0:00:12]}
47... h5 {[%clk 0:01:05.4]} 48. gxh5 {[%clk 0:00:12.2]} 48... gxh5 {[%clk
0:01:07.3]} 49. Kxa5 {[%clk 0:00:13.7]} 49... h4 {[%clk 0:01:08.9]} 50. b4
{[%clk 0:00:15.2]} 50... h3 {[%clk 0:01:10]} 51. b5 {[%clk 0:00:16.9]} 51... h2
{[%clk 0:01:11.1]} 52. b6 {[%clk 0:00:18.6]} 52... h1=Q {[%clk 0:01:11.6]} 53.
b7 {[%clk 0:00:20.3]} 53... Qxb7 {[%clk 0:01:12]} 0-1

[Event "*** Titled Tuesday Blitz"]
[Site "Chess.com"]
[Date "2019.05.07"]
[Round "8"]
[White "Chessialist"]
[Black "Lagmantr"]
[Result "1-0"]
[WhiteElo "2579"]
[BlackElo "2582"]
[TimeControl "180+2"]
[EndTime "14:54:04 PDT"]
[Termination "Chessialist won by resignation"]

1. e4 {[%clk 0:03:01.9]} 1... c5 {[%clk 0:03:00.3]} 2. Nf3 {[%clk 0:03:02.2]}
2... d6 {[%clk 0:02:57.4]} 3. d4 {[%clk 0:03:03.3]} 3... cxd4 {[%clk 0:02:59.3]}
4. Qxd4 {[%clk 0:03:05.1]} 4... Nf6 {[%clk 0:02:59.4]} 5. e5 {[%clk 0:03:05.3]}
5... Nc6 {[%clk 0:02:55.6]} 6. Bb5 {[%clk 0:03:01.5]} 6... Qa5+ {[%clk
0:02:56.2]} 7. Nc3 {[%clk 0:03:02.5]} 7... Qxb5 {[%clk 0:02:57.3]} 8. Nxb5
{[%clk 0:03:04.4]} 8... Nxd4 {[%clk 0:02:58.6]} 9. Nbxd4 {[%clk 0:03:06.2]} 9...
dxe5 {[%clk 0:02:56.5]} 10. Nxe5 {[%clk 0:03:08.1]} 10... e6 {[%clk 0:02:43.4]}
11. Nb5 {[%clk 0:02:57.2]} 11... Nd5 {[%clk 0:02:44]} 12. Nc4 {[%clk 0:02:45.5]}
12... a6 {[%clk 0:02:38.7]} 13. Nbd6+ {[%clk 0:02:46]} 13... Bxd6 {[%clk
0:02:39.4]} 14. Nxd6+ {[%clk 0:02:47.7]} 14... Ke7 {[%clk 0:02:40.9]} 15. Ne4
{[%clk 0:02:10.1]} 15... b6 {[%clk 0:02:34.1]} 16. Bd2 {[%clk 0:02:09.4]} 16...
f5 {[%clk 0:02:11.5]} 17. Nc3 {[%clk 0:02:02.5]} 17... Bb7 {[%clk 0:02:04.4]}
18. f3 {[%clk 0:01:59.5]} 18... Nxc3 {[%clk 0:02:00.3]} 19. Bxc3 {[%clk
0:02:00.4]} 19... Kf7 {[%clk 0:02:01.7]} 20. O-O-O {[%clk 0:01:59]} 20... Rhd8
{[%clk 0:02:02.9]} 21. Bd4 {[%clk 0:01:57.9]} 21... b5 {[%clk 0:01:58.9]} 22.
Bb6 {[%clk 0:01:58.7]} 22... Rd5 {[%clk 0:01:59.4]} 23. b3 {[%clk 0:01:52.6]}
23... Rc8 {[%clk 0:01:56.4]} 24. Kb2 {[%clk 0:01:53.5]} 24... g5 {[%clk
0:01:48]} 25. Rxd5 {[%clk 0:01:52.9]} 25... Bxd5 {[%clk 0:01:48.6]} 26. Rd1
{[%clk 0:01:49.5]} 26... h5 {[%clk 0:01:45.6]} 27. Rd4 {[%clk 0:01:38.2]} 27...
g4 {[%clk 0:01:43.3]} 28. fxg4 {[%clk 0:01:32.5]} 28... hxg4 {[%clk 0:01:43.9]}
29. g3 {[%clk 0:01:30.6]} 29... Rh8 {[%clk 0:01:39.1]} 30. Rd2 {[%clk
0:01:30.6]} 30... Be4 {[%clk 0:01:27.9]} 31. Bc7 {[%clk 0:01:26.3]} 31... Kf6
{[%clk 0:01:20.6]} 32. Bd8+ {[%clk 0:01:27.1]} 32... Kg6 {[%clk 0:01:17.3]} 33.
Bc7 {[%clk 0:01:25.6]} 33... Bd5 {[%clk 0:01:00.7]} 34. Be5 {[%clk 0:01:26.2]}
34... Rc8 {[%clk 0:00:57.3]} 35. c3 {[%clk 0:01:25.2]} 35... Rc5 {[%clk
0:00:48.5]} 36. Bd4 {[%clk 0:01:24.6]} 36... Rc7 {[%clk 0:00:49.3]} 37. Ka3
{[%clk 0:01:25]} 37... f4 {[%clk 0:00:39.5]} 38. gxf4 {[%clk 0:01:17.4]} 38...
a5 {[%clk 0:00:40]} 39. Kb2 {[%clk 0:01:15.7]} 39... a4 {[%clk 0:00:37.5]} 40.
Ka3 {[%clk 0:01:14.9]} 40... axb3 {[%clk 0:00:36.7]} 41. axb3 {[%clk 0:01:16.8]}
41... Kf5 {[%clk 0:00:38]} 42. Be5 {[%clk 0:01:16.7]} 42... Rc8 {[%clk
0:00:38.7]} 43. Kb4 {[%clk 0:01:17.7]} 43... Rd8 {[%clk 0:00:35.9]} 44. c4
{[%clk 0:01:07.9]} 44... bxc4 {[%clk 0:00:35.4]} 45. bxc4 {[%clk 0:01:08.8]}
45... Rd7 {[%clk 0:00:32.7]} 46. cxd5 {[%clk 0:01:09.7]} 46... exd5 {[%clk
0:00:34.6]} 47. Kc5 {[%clk 0:01:10.8]} 47... Ke4 {[%clk 0:00:35.4]} 48. Rd4+
{[%clk 0:01:10.4]} 48... Kf3 {[%clk 0:00:36]} 49. f5 {[%clk 0:01:09.9]} 49...
Re7 {[%clk 0:00:31.2]} 50. Kd6 {[%clk 0:01:08.3]} 50... Re8 {[%clk 0:00:27.8]}
51. f6 {[%clk 0:01:08.6]} 51... Ke3 {[%clk 0:00:27.6]} 52. f7 {[%clk 0:01:07.3]}
52... Rxe5 {[%clk 0:00:28.9]} 53. Kxe5 {[%clk 0:01:07.9]} 1-0

[Event "*** Titled Tuesday Blitz"]
[Site "Chess.com"]
[Date "2019.05.07"]
[Round "8"]
[White "Arystanner"]
[Black "DrMelekess"]
[Result "0-1"]
[WhiteElo "2758"]
[BlackElo "2776"]
[TimeControl "180+2"]
[EndTime "14:54:07 PDT"]
[Termination "DrMelekess won by resignation"]

1. e4 {[%clk 0:03:01.9]} 1... d5 {[%clk 0:02:56.8]} 2. exd5 {[%clk 0:03:02.6]}
2... Qxd5 {[%clk 0:02:58.7]} 3. Nc3 {[%clk 0:03:03.9]} 3... Qd8 {[%clk
0:02:57.9]} 4. d4 {[%clk 0:03:05.2]} 4... Nf6 {[%clk 0:02:58.8]} 5. Bc4 {[%clk
0:03:04.6]} 5... c6 {[%clk 0:02:58.3]} 6. Nf3 {[%clk 0:03:05.7]} 6... Bf5 {[%clk
0:02:58.6]} 7. O-O {[%clk 0:03:05.7]} 7... e6 {[%clk 0:02:59.6]} 8. h3 {[%clk
0:03:06.3]} 8... Nbd7 {[%clk 0:02:58.9]} 9. Re1 {[%clk 0:03:07.3]} 9... Be7
{[%clk 0:02:59.7]} 10. Bf4 {[%clk 0:03:07.1]} 10... O-O {[%clk 0:03:00.2]} 11.
Bg3 {[%clk 0:03:06]} 11... Re8 {[%clk 0:02:57.7]} 12. Qe2 {[%clk 0:03:05.2]}
12... Bg6 {[%clk 0:02:50]} 13. Rad1 {[%clk 0:03:05.3]} 13... Bh5 {[%clk
0:02:46.7]} 14. Qe3 {[%clk 0:02:50.6]} 14... Nb6 {[%clk 0:02:44.3]} 15. Bb3
{[%clk 0:02:51.1]} 15... Nbd5 {[%clk 0:02:44.5]} 16. Nxd5 {[%clk 0:02:52.1]}
16... cxd5 {[%clk 0:02:42.7]} 17. Ba4 {[%clk 0:02:43.4]} 17... Rf8 {[%clk
0:02:40.5]} 18. c3 {[%clk 0:02:39.8]} 18... Ne4 {[%clk 0:02:36.3]} 19. Bf4
{[%clk 0:02:37.5]} 19... Bxf3 {[%clk 0:02:25.9]} 20. Qxf3 {[%clk 0:02:35.6]}
20... Bd6 {[%clk 0:02:23.5]} 21. Bc2 {[%clk 0:02:32.6]} 21... Bxf4 {[%clk
0:02:24.1]} 22. Qxf4 {[%clk 0:02:34.5]} 22... Nf6 {[%clk 0:02:24.3]} 23. g4
{[%clk 0:02:35]} 23... b5 {[%clk 0:02:22.2]} 24. Kg2 {[%clk 0:02:26.8]} 24... a5
{[%clk 0:02:22.4]} 25. h4 {[%clk 0:02:27.6]} 25... b4 {[%clk 0:02:18.4]} 26. Re3
{[%clk 0:02:27.9]} 26... bxc3 {[%clk 0:02:18.3]} 27. bxc3 {[%clk 0:02:29.8]}
27... Rc8 {[%clk 0:02:02.8]} 28. Qf3 {[%clk 0:02:26.8]} 28... Ne8 {[%clk
0:01:31.8]} 29. h5 {[%clk 0:02:06.4]} 29... Nd6 {[%clk 0:01:30.2]} 30. Qf4
{[%clk 0:02:05.2]} 30... Nc4 {[%clk 0:01:28.8]} 31. Rg3 {[%clk 0:02:01.3]} 31...
Qd6 {[%clk 0:01:26.2]} 32. Qg5 {[%clk 0:01:53.2]} 32... f6 {[%clk 0:01:19.5]}
33. Bxh7+ {[%clk 0:00:49]} 33... Kxh7 {[%clk 0:01:07.6]} 34. Qg6+ {[%clk
0:00:50.2]} 34... Kg8 {[%clk 0:01:08.7]} 35. h6 {[%clk 0:00:51.7]} 35... Rc7
{[%clk 0:00:34.8]} 36. Rh1 {[%clk 0:00:52.9]} 36... Qf4 {[%clk 0:00:27.6]} 37.
hxg7 {[%clk 0:00:52.6]} 37... Rxg7 {[%clk 0:00:28.3]} 38. Qh5 {[%clk 0:00:54.2]}
38... Qe4+ {[%clk 0:00:24.7]} 39. Kg1 {[%clk 0:00:43.2]} 39... Nd2 {[%clk
0:00:25.2]} 40. g5 {[%clk 0:00:33.5]} 40... fxg5 {[%clk 0:00:21.7]} 41. Re3
{[%clk 0:00:31.1]} 41... Qf5 {[%clk 0:00:18.3]} 42. Rh2 {[%clk 0:00:21.5]} 42...
Nf3+ {[%clk 0:00:16.7]} 43. Rxf3 {[%clk 0:00:23]} 43... Qxf3 {[%clk 0:00:18.3]}
44. Qh8+ {[%clk 0:00:24.5]} 44... Kf7 {[%clk 0:00:19.5]} 0-1

[Event "*** Titled Tuesday Blitz"]
[Site "Chess.com"]
[Date "2019.05.07"]
[Round "8"]
[White "Berardino"]
[Black "superstructure"]
[Result "1-0"]
[WhiteElo "2534"]
[BlackElo "2325"]
[TimeControl "180+2"]
[EndTime "14:54:14 PDT"]
[Termination "Berardino won by checkmate"]

1. e4 {[%clk 0:03:01.9]} 1... e5 {[%clk 0:02:55.8]} 2. Nf3 {[%clk 0:03:02.8]}
2... Nc6 {[%clk 0:02:56.9]} 3. Bb5 {[%clk 0:03:04.2]} 3... a6 {[%clk 0:02:57.3]}
4. Ba4 {[%clk 0:03:05]} 4... Nf6 {[%clk 0:02:58.3]} 5. O-O {[%clk 0:03:06.1]}
5... Be7 {[%clk 0:02:58.8]} 6. Re1 {[%clk 0:03:07.2]} 6... b5 {[%clk 0:02:59.8]}
7. Bb3 {[%clk 0:03:08.4]} 7... d6 {[%clk 0:03:01.2]} 8. c3 {[%clk 0:03:09.3]}
8... O-O {[%clk 0:03:00.6]} 9. h3 {[%clk 0:03:10.8]} 9... Nb8 {[%clk 0:03:01.3]}
10. d4 {[%clk 0:03:11.8]} 10... Nbd7 {[%clk 0:03:01.1]} 11. Nbd2 {[%clk
0:03:13]} 11... Bb7 {[%clk 0:03:02]} 12. Bc2 {[%clk 0:03:14.1]} 12... Re8 {[%clk
0:03:02.6]} 13. Nf1 {[%clk 0:03:15.4]} 13... Bf8 {[%clk 0:03:03.6]} 14. Ng3
{[%clk 0:03:16.6]} 14... g6 {[%clk 0:03:04.9]} 15. a4 {[%clk 0:03:16.5]} 15...
c5 {[%clk 0:03:03.7]} 16. d5 {[%clk 0:03:17.8]} 16... c4 {[%clk 0:03:04.5]} 17.
Bg5 {[%clk 0:03:18.9]} 17... Be7 {[%clk 0:02:59.2]} 18. Be3 {[%clk 0:02:51]}
18... Qc7 {[%clk 0:02:57.6]} 19. Nh2 {[%clk 0:02:46.8]} 19... Nc5 {[%clk
0:02:45.1]} 20. Bh6 {[%clk 0:02:20.4]} 20... Bf8 {[%clk 0:02:14]} 21. Qd2 {[%clk
0:02:13.3]} 21... Qe7 {[%clk 0:01:57.5]} 22. Bg5 {[%clk 0:02:11.1]} 22... h6
{[%clk 0:01:29]} 23. Bxh6 {[%clk 0:02:09.9]} 23... Bxh6 {[%clk 0:01:30.9]} 24.
Qxh6 {[%clk 0:02:10.8]} 24... Rab8 {[%clk 0:01:32.3]} 25. axb5 {[%clk
0:02:10.4]} 25... axb5 {[%clk 0:01:32.8]} 26. Re3 {[%clk 0:02:08.5]} 26... Qf8
{[%clk 0:01:23.6]} 27. Qh4 {[%clk 0:02:05.9]} 27... Nh7 {[%clk 0:01:16.5]} 28.
Ng4 {[%clk 0:02:05.9]} 28... f6 {[%clk 0:01:01]} 29. Rf3 {[%clk 0:02:04]} 29...
Nd7 {[%clk 0:00:28.1]} 30. Ra7 {[%clk 0:01:47.1]} 30... Qg7 {[%clk 0:00:21.2]}
31. Re3 {[%clk 0:01:07]} 31... Rf8 {[%clk 0:00:20.5]} 32. Re1 {[%clk 0:01:05.1]}
32... Nc5 {[%clk 0:00:21.3]} 33. Ne3 {[%clk 0:00:47]} 33... Ra8 {[%clk
0:00:21.1]} 34. Rxa8 {[%clk 0:00:45.5]} 34... Rxa8 {[%clk 0:00:23]} 35. Rb1
{[%clk 0:00:40.5]} 35... Ra2 {[%clk 0:00:22.6]} 36. Qg4 {[%clk 0:00:37.6]} 36...
Qf7 {[%clk 0:00:15.3]} 37. h4 {[%clk 0:00:37.3]} 37... Kf8 {[%clk 0:00:15.3]}
38. h5 {[%clk 0:00:37.8]} 38... gxh5 {[%clk 0:00:13.7]} 39. Nxh5 {[%clk
0:00:38.7]} 39... Ng5 {[%clk 0:00:14.2]} 40. Ng3 {[%clk 0:00:34.8]} 40... Qe8
{[%clk 0:00:13.1]} 41. Qh4 {[%clk 0:00:33.8]} 41... Bc8 {[%clk 0:00:12.5]} 42.
Nef5 {[%clk 0:00:31.9]} 42... Bxf5 {[%clk 0:00:12.7]} 43. Nxf5 {[%clk 0:00:33]}
43... Qd7 {[%clk 0:00:09.8]} 44. Bd1 {[%clk 0:00:30.7]} 44... Kg8 {[%clk
0:00:09.8]} 45. Qh6 {[%clk 0:00:30.8]} 45... Nd3 {[%clk 0:00:08.6]} 46. Qxf6
{[%clk 0:00:28.3]} 46... Nxe4 {[%clk 0:00:09.7]} 47. Ne7+ {[%clk 0:00:25.6]}
47... Kh7 {[%clk 0:00:09.8]} 48. Qg6+ {[%clk 0:00:26.6]} 48... Kh8 {[%clk
0:00:11.1]} 49. Qg8# {[%clk 0:00:28.5]} 1-0

[Event "*** Titled Tuesday Blitz"]
[Site "Chess.com"]
[Date "2019.05.07"]
[Round "8"]
[White "GCamachoMartinez"]
[Black "kintoho"]
[Result "1-0"]
[WhiteElo "2397"]
[BlackElo "2548"]
[TimeControl "180+2"]
[EndTime "14:54:16 PDT"]
[Termination "GCamachoMartinez won by resignation"]

1. d4 {[%clk 0:03:01.9]} 1... g6 {[%clk 0:03:00.3]} 2. c4 {[%clk 0:02:57.3]}
2... Bg7 {[%clk 0:03:00.7]} 3. Nc3 {[%clk 0:02:58.4]} 3... c5 {[%clk 0:03:01.8]}
4. Nf3 {[%clk 0:02:55.4]} 4... cxd4 {[%clk 0:03:01.6]} 5. Nxd4 {[%clk
0:02:56.4]} 5... Nc6 {[%clk 0:03:03]} 6. e3 {[%clk 0:02:57.5]} 6... Nf6 {[%clk
0:03:03]} 7. Be2 {[%clk 0:02:54.5]} 7... O-O {[%clk 0:03:04]} 8. O-O {[%clk
0:02:55.4]} 8... d5 {[%clk 0:03:04.4]} 9. cxd5 {[%clk 0:02:55.6]} 9... Nxd5
{[%clk 0:03:05.6]} 10. Nxd5 {[%clk 0:02:47]} 10... Qxd5 {[%clk 0:02:55.1]} 11.
Bf3 {[%clk 0:02:47.8]} 11... Qc5 {[%clk 0:02:56.2]} 12. Nxc6 {[%clk 0:02:45]}
12... bxc6 {[%clk 0:02:56.7]} 13. Qa4 {[%clk 0:02:10.8]} 13... Bb7 {[%clk
0:02:56.8]} 14. Bd2 {[%clk 0:02:09.6]} 14... Rab8 {[%clk 0:02:49.5]} 15. Rac1
{[%clk 0:02:08.2]} 15... Qb5 {[%clk 0:02:48]} 16. Qxb5 {[%clk 0:01:20]} 16...
cxb5 {[%clk 0:02:48.8]} 17. Bxb7 {[%clk 0:01:19.2]} 17... Rxb7 {[%clk 0:02:50]}
18. Bc3 {[%clk 0:01:20.9]} 18... e5 {[%clk 0:02:51.3]} 19. Bb4 {[%clk
0:01:17.9]} 19... Rd8 {[%clk 0:02:50.4]} 20. Rfd1 {[%clk 0:01:19.4]} 20... Rbd7
{[%clk 0:02:51.5]} 21. Rxd7 {[%clk 0:01:18.7]} 21... Rxd7 {[%clk 0:02:52.4]} 22.
Rc8+ {[%clk 0:01:20]} 22... Bf8 {[%clk 0:02:53.3]} 23. Rxf8+ {[%clk 0:01:20.8]}
23... Kg7 {[%clk 0:02:54.7]} 24. Kf1 {[%clk 0:01:02.6]} 24... a5 {[%clk
0:02:53.5]} 25. Rb8 {[%clk 0:00:52.1]} 25... axb4 {[%clk 0:02:53.3]} 26. Rxb5
{[%clk 0:00:53.6]} 26... Ra7 {[%clk 0:02:52.5]} 27. Rxb4 {[%clk 0:00:54.6]}
27... Rxa2 {[%clk 0:02:53.6]} 28. Ke2 {[%clk 0:00:56.2]} 28... f5 {[%clk
0:02:52.5]} 29. Rb7+ {[%clk 0:00:56]} 29... Kf6 {[%clk 0:02:53.6]} 30. h4 {[%clk
0:00:53.7]} 30... h6 {[%clk 0:02:52.8]} 31. f3 {[%clk 0:00:52.2]} 31... g5
{[%clk 0:02:52]} 32. Rb6+ {[%clk 0:00:52.3]} 32... Kg7 {[%clk 0:02:48.4]} 33. h5
{[%clk 0:00:53.3]} 33... e4 {[%clk 0:02:37.1]} 34. fxe4 {[%clk 0:00:53.8]} 34...
fxe4 {[%clk 0:02:38]} 35. Kf2 {[%clk 0:00:51.2]} 35... Ra1 {[%clk 0:02:34.9]}
36. Rg6+ {[%clk 0:00:42.4]} 36... Kh7 {[%clk 0:02:34.2]} 37. Re6 {[%clk
0:00:43.8]} 37... Rb1 {[%clk 0:02:33.8]} 38. Rxe4 {[%clk 0:00:42.4]} 38... Rxb2+
{[%clk 0:02:34.8]} 39. Kf3 {[%clk 0:00:44]} 39... Rb7 {[%clk 0:02:27.2]} 40. Re6
{[%clk 0:00:43.5]} 40... Kg7 {[%clk 0:02:28.4]} 41. Rg6+ {[%clk 0:00:44.2]}
41... Kh7 {[%clk 0:02:29.5]} 42. g4 {[%clk 0:00:43.7]} 42... Rb1 {[%clk
0:02:27.5]} 43. Rd6 {[%clk 0:00:41.2]} 43... Rf1+ {[%clk 0:02:27.2]} 44. Ke4
{[%clk 0:00:42]} 44... Rf7 {[%clk 0:02:27.5]} 45. Ke5 {[%clk 0:00:33.9]} 45...
Rf3 {[%clk 0:02:24.6]} 46. e4 {[%clk 0:00:30.1]} 46... Rf4 {[%clk 0:02:25.8]}
47. Rd7+ {[%clk 0:00:28.6]} 47... Kg8 {[%clk 0:02:27.1]} 48. Rd6 {[%clk
0:00:23.1]} 48... Rxg4 {[%clk 0:02:18.9]} 49. Rxh6 {[%clk 0:00:23.1]} 49... Kg7
{[%clk 0:02:16]} 50. Rg6+ {[%clk 0:00:23.9]} 50... Kf7 {[%clk 0:02:17.1]} 51.
Ra6 {[%clk 0:00:22.3]} 51... Kg7 {[%clk 0:02:11.1]} 52. Kd5 {[%clk 0:00:18.7]}
52... Rg1 {[%clk 0:02:11.1]} 53. e5 {[%clk 0:00:19.3]} 53... Rd1+ {[%clk
0:02:11]} 54. Ke6 {[%clk 0:00:19.8]} 54... g4 {[%clk 0:02:10.9]} 55. Kf5 {[%clk
0:00:20.1]} 55... Rf1+ {[%clk 0:01:58.6]} 56. Kxg4 {[%clk 0:00:20]} 56... Re1
{[%clk 0:01:59.3]} 57. Kf5 {[%clk 0:00:21.1]} 57... Rf1+ {[%clk 0:02:00.4]} 58.
Ke6 {[%clk 0:00:22.3]} 58... Kh6 {[%clk 0:02:01.8]} 59. Ra4 {[%clk 0:00:21.8]}
59... Kxh5 {[%clk 0:02:02]} 60. Ke7 {[%clk 0:00:22]} 60... Rb1 {[%clk
0:02:00.1]} 61. e6 {[%clk 0:00:22.4]} 61... Rb7+ {[%clk 0:01:57.7]} 62. Kf6
{[%clk 0:00:22.7]} 62... Rb6 {[%clk 0:01:56.5]} 63. Ra5+ {[%clk 0:00:22.4]}
63... Kh6 {[%clk 0:01:56.5]} 64. Kf7 {[%clk 0:00:23.6]} 64... Rb1 {[%clk
0:01:55.6]} 65. Rf5 {[%clk 0:00:23.1]} 65... Rg1 {[%clk 0:01:54.4]} 66. e7
{[%clk 0:00:23.6]} 66... Rg7+ {[%clk 0:01:55.4]} 67. Ke6 {[%clk 0:00:24.5]}
67... Kg6 {[%clk 0:01:56.5]} 68. Rf8 {[%clk 0:00:22.6]} 68... Kh7 {[%clk
0:01:53.2]} 69. e8=Q {[%clk 0:00:21.7]} 69... Rg6+ {[%clk 0:01:54.4]} 70. Qxg6+
{[%clk 0:00:22]} 70... Kxg6 {[%clk 0:01:54.5]} 71. Rg8+ {[%clk 0:00:23.4]} 1-0

[Event "*** Titled Tuesday Blitz"]
[Site "Chess.com"]
[Date "2019.05.07"]
[Round "8"]
[White "Sebastian"]
[Black "penguingm1"]
[Result "0-1"]
[WhiteElo "2906"]
[BlackElo "2925"]
[TimeControl "180+2"]
[EndTime "14:54:19 PDT"]
[Termination "penguingm1 won by resignation"]

1. e4 {[%clk 0:03:01.9]} 1... e5 {[%clk 0:03:00.3]} 2. Nf3 {[%clk 0:03:02.8]}
2... Nc6 {[%clk 0:03:01]} 3. Bb5 {[%clk 0:03:04.2]} 3... a6 {[%clk 0:03:02.2]}
4. Ba4 {[%clk 0:03:05.1]} 4... Nf6 {[%clk 0:03:03.7]} 5. O-O {[%clk 0:03:05.9]}
5... d6 {[%clk 0:03:05.2]} 6. c3 {[%clk 0:02:59.9]} 6... Bd7 {[%clk 0:03:04.5]}
7. Re1 {[%clk 0:02:57.7]} 7... g6 {[%clk 0:03:03.6]} 8. d4 {[%clk 0:02:57.9]}
8... b5 {[%clk 0:03:05]} 9. Bb3 {[%clk 0:02:57.7]} 9... Bg7 {[%clk 0:03:06.1]}
10. Be3 {[%clk 0:02:58.4]} 10... O-O {[%clk 0:03:02]} 11. Nbd2 {[%clk
0:02:59.1]} 11... Re8 {[%clk 0:02:54.2]} 12. h3 {[%clk 0:02:50]} 12... Qc8
{[%clk 0:02:37.1]} 13. a3 {[%clk 0:02:33.1]} 13... a5 {[%clk 0:02:16.6]} 14. Bc2
{[%clk 0:02:08.8]} 14... a4 {[%clk 0:02:00.7]} 15. Rc1 {[%clk 0:01:59.7]} 15...
Na5 {[%clk 0:01:50.8]} 16. Bd3 {[%clk 0:01:47.9]} 16... c5 {[%clk 0:01:39.8]}
17. dxe5 {[%clk 0:01:48]} 17... dxe5 {[%clk 0:01:39.9]} 18. c4 {[%clk
0:01:49.6]} 18... b4 {[%clk 0:01:29.3]} 19. Qe2 {[%clk 0:01:35.7]} 19... Nh5
{[%clk 0:01:18.3]} 20. Rcd1 {[%clk 0:01:26.3]} 20... Qc7 {[%clk 0:01:17.3]} 21.
Qf1 {[%clk 0:01:05.7]} 21... Nf4 {[%clk 0:01:08.6]} 22. Bc2 {[%clk 0:00:48.5]}
22... Ne6 {[%clk 0:01:06.1]} 23. Bd3 {[%clk 0:00:47.7]} 23... Reb8 {[%clk
0:00:54.8]} 24. g3 {[%clk 0:00:39.5]} 24... Nd4 {[%clk 0:00:53.1]} 25. Bxd4
{[%clk 0:00:38.4]} 25... cxd4 {[%clk 0:00:54.4]} 26. c5 {[%clk 0:00:26.5]} 26...
bxa3 {[%clk 0:00:53.4]} 27. bxa3 {[%clk 0:00:26.9]} 27... Qxc5 {[%clk
0:00:54.7]} 28. Ra1 {[%clk 0:00:26.7]} 28... Nb3 {[%clk 0:00:42.3]} 29. Ra2
{[%clk 0:00:26.8]} 29... Na5 {[%clk 0:00:39.3]} 30. Rc1 {[%clk 0:00:26.2]} 30...
Qe7 {[%clk 0:00:40.7]} 31. Nc4 {[%clk 0:00:18.9]} 31... Nb3 {[%clk 0:00:41.8]}
32. Rd1 {[%clk 0:00:18]} 32... Nc5 {[%clk 0:00:43]} 33. Rc2 {[%clk 0:00:15.1]}
33... Rb3 {[%clk 0:00:35.8]} 34. Kg2 {[%clk 0:00:14.5]} 34... h6 {[%clk
0:00:31.1]} 35. Qe2 {[%clk 0:00:14.1]} 35... Rab8 {[%clk 0:00:23.6]} 36. Ne1
{[%clk 0:00:13.8]} 36... Be6 {[%clk 0:00:22.7]} 37. Nd2 {[%clk 0:00:13.8]} 37...
Rxa3 {[%clk 0:00:22.3]} 38. Rdc1 {[%clk 0:00:14.4]} 38... Nb3 {[%clk 0:00:19]}
39. Rb1 {[%clk 0:00:13.9]} 39... Qd7 {[%clk 0:00:14.1]} 40. h4 {[%clk
0:00:12.3]} 40... Ra1 {[%clk 0:00:11.2]} 41. Rxa1 {[%clk 0:00:11]} 41... Nxa1
{[%clk 0:00:12.5]} 42. Rc5 {[%clk 0:00:10.5]} 42... Nb3 {[%clk 0:00:13.3]} 43.
Rc2 {[%clk 0:00:09.3]} 43... a3 {[%clk 0:00:12]} 44. Nc4 {[%clk 0:00:09.8]}
44... Qa7 {[%clk 0:00:10.1]} 45. Ra2 {[%clk 0:00:10.4]} 45... Nc1 {[%clk
0:00:11.4]} 46. Rxa3 {[%clk 0:00:11.1]} 46... Qxa3 {[%clk 0:00:12.5]} 0-1